bitfinex/quotes_ETHUSD_20250804
["timestamp","ask_amount","ask_price","bid_price","bid_amount"]
[1754306475383,51.13110463,3556.6,3556.5,0.002]
[1754306475587,15.35910463,3556.6,3556.5,0.9352]
[1754306475827,14.80910463,3556.6,3556.5,0.9352]
[1754306475993,22.08610463,3556.6,3556.5,0.9352]
[1754306476319,22.63610463,3556.6,3556.5,0.9352]
[1754306476522,22.08610463,3556.6,3556.5,0.9352]
[1754306476921,19.63610463,3556.6,3556.5,0.9352]
[1754306478494,15.35910463,3556.6,3556.5,0.9352]
[1754306479015,19.63610463,3556.6,3556.5,0.9352]
[1754306480118,19.63610463,3556.6,3556.5,0.465]
[1754306480526,22.5043517,3556.6,3556.5,0.002]
[1754306480722,25.9846517,3556.6,3556.5,0.002]
[1754306480889,28.79632577,3556.6,3556.5,0.002]
[1754306481287,25.9846517,3556.6,3556.5,0.002]
[1754306481535,59.17313665,3556.6,3556.5,0.002]
[1754306481823,59.62163665,3556.6,3556.5,0.002]
[1754306482025,60.20561865,3556.6,3556.5,0.002]
[1754306483427,59.82880777,3556.6,3556.5,0.002]
[1754306484693,59.38030777,3556.6,3556.5,0.002]
[1754306484890,71.42891605,3556.6,3556.5,0.002]
[1754306485229,70.98041605,3556.6,3556.5,0.002]
[1754306485725,70.50011605,3556.6,3556.5,0.002]
[1754306486054,71.42891605,3556.6,3556.5,0.002]
[1754306486327,73.11891605,3556.6,3556.5,0.002]
[1754306486500,72.67041605,3556.6,3556.5,0.002]
[1754306486701,67.91311605,3556.6,3556.5,0.002]
[1754306486901,32.92621291,3556.6,3556.5,0.002]
[1754306487107,38.73788698,3556.6,3556.5,0.475]
[1754306487313,38.85060698,3556.6,3556.5,0.002]
[1754306488724,38.85060698,3556.6,3556.5,0.9334]
[1754306488725,18.35910463,3556.6,3556.5,0.9334]
[1754306488925,22.63610463,3556.6,3556.5,0.9334]
[1754306489499,18.35910463,3556.6,3556.5,0.475]
[1754306489693,24.20961993,3556.6,3556.5,0.475]
[1754306489910,24.20961993,3556.6,3556.5,0.002]
[1754306490331,24.20961993,3556.6,3556.5,0.475]
[1754306490535,24.20961993,3556.6,3556.5,0.9334]
[1754306491713,22.63610463,3556.6,3556.5,0.9334]
[1754306492115,18.35910463,3556.6,3556.5,0.9334]
[1754306492315,19.63610463,3556.6,3556.5,0.9334]
[1754306492931,15.35910463,3556.6,3556.5,0.9334]
[1754306493243,19.63610463,3556.6,3556.5,0.9334]
[1754306493848,15.35910463,3556.6,3556.5,0.9334]
[1754306494349,19.08610463,3556.6,3556.5,0.9334]
[1754306495909,18.94530463,3556.6,3556.5,0.9334]
[1754306496330,14.66830463,3556.6,3556.5,0.9334]
[1754306496538,7.67190663,3556.6,3556.5,1.3220173]
[1754306496748,11.94890663,3556.6,3556.5,1.4628173]
[1754306498349,11.94890663,3556.6,3556.5,4.27457042]
[1754306498550,7.67190663,3556.6,3556.5,4.27457042]
[1754306498847,11.94890663,3556.6,3556.5,4.27457042]
[1754306499658,11.036,3556.6,3556.5,4.27457042]
[1754306500375,11.036,3556.6,3556.5,4.13377042]
[1754306500676,4.277,3556.6,3556.5,4.27457042]
[1754306500820,6.996398,3557.4,3557.3,2.81112079]
[1754306501016,6.996398,3557.4,3557.3,4.30475775]
[1754306501017,4.277,3557.4,3557.3,4.30475775]
[1754306501247,6.758,3558.0,3557.3,1.63443696]
[1754306501429,4.277,3557.9,3557.4,3.7424382]
[1754306501629,4.277,3557.9,3557.7,0.1408]
[1754306502033,4.277,3557.9,3557.8,0.9314]
[1754306502423,4.277,3557.9,3557.7,0.1408]
[1754306503254,4.277,3557.9,3557.8,0.473]
[1754306503759,4.277,3557.9,3557.8,0.9314]
[1754306504056,4.277,3557.9,3557.8,1.60079403]
[1754306504259,4.276,3557.9,3557.8,4.41151975]
[1754306504433,4.276,3557.9,3557.8,1.60079403]
[1754306505026,4.276,3557.9,3557.8,4.41151975]
[1754306507327,6.758,3558.0,3557.9,2.81064672]
[1754306507580,6.758,3558.0,3557.9,7.27831404]
[1754306507752,0.001,3559.1,3558.6,2.81009385]
[1754306507956,4.276,3558.7,3558.6,2.95089385]
[1754306508182,4.276,3558.7,3558.6,1.0703]
[1754306509151,4.276,3558.7,3558.6,3.88039385]
[1754306509353,4.276,3558.7,3558.6,4.26901115]
[1754306510997,0.001,3558.7,3558.6,4.48351274]
[1754306511154,4.276,3558.7,3558.6,4.48351274]
[1754306513789,4.275,3558.7,3558.6,4.48351274]
[1754306515143,0.001,3559.1,3559.0,5.80977802]
[1754306515361,4.275,3559.1,3559.0,5.80977802]
[1754306515682,4.275,3559.1,3559.0,6.88007802]
[1754306516694,0.001,3560.0,3559.5,2.80938334]
[1754306516842,4.275,3559.6,3559.5,5.80938334]
[1754306517042,4.275,3559.6,3559.5,6.42228334]
[1754306517547,4.275,3559.6,3559.5,6.87968334]
[1754306517773,4.275,3559.6,3559.5,7.26830064]
[1754306518175,4.275,3559.6,3559.5,6.81090064]
[1754306518448,4.275,3559.6,3559.5,7.26830064]
[1754306518950,4.275,3559.6,3559.5,6.81090064]
[1754306520568,4.275,3559.6,3559.5,7.26830064]
[1754306520950,4.275,3559.6,3559.5,6.81090064]
[1754306521753,4.275,3559.6,3559.5,7.26830064]
[1754306522492,0.001,3560.0,3559.7,2.80922549]
[1754306522699,1e-08,3559.8,3559.7,5.97057291]
[1754306522988,0.001,3560.2,3560.1,2.80890986]
[1754306523197,0.001,3560.2,3560.1,2.94970986]
[1754306523382,0.001,3560.2,3560.1,4.41737718]
[1754306524397,0.4976,3560.2,3560.1,3.48787718]
[1754306524580,0.4976,3560.2,3560.1,3.1408]
[1754306524784,0.4976,3560.2,3560.1,0.1408]
[1754306525194,0.4976,3560.2,3560.1,2.94970986]
[1754306525378,0.4976,3560.2,3560.1,0.1408]
[1754306526111,0.9592,3560.2,3560.1,0.1408]
[1754306526657,0.4976,3560.2,3560.1,0.1408]
[1754306527489,0.9592,3560.2,3560.1,0.1408]
[1754306530789,0.9592,3560.2,3559.5,2.80938066]
[1754306531010,0.9582,3560.1,3559.5,2.80938066]
[1754306531320,5.2322,3560.0,3559.9,0.1408]
[1754306531519,4.274,3560.0,3559.2,2.80957608]
[1754306531695,0.9582,3559.9,3559.7,0.1408]
[1754306532399,0.9582,3559.8,3558.8,0.4721]
[1754306532590,4.274,3560.0,3559.4,0.1408]
[1754306532591,0.9582,3559.7,3559.4,0.1408]
[1754306532786,4.274,3559.6,3559.4,0.1408]
[1754306533007,5.2322,3559.6,3559.4,0.1408]
[1754306533213,0.9582,3559.5,3559.4,0.1408]
[1754306533518,0.9582,3559.5,3558.7,3.0]
[1754306533698,0.9582,3559.4,3559.0,0.1408]
[1754306533893,2.65551083,3559.4,3559.0,0.1408]
[1754306534104,0.9582,3559.3,3559.0,0.1408]
[1754306534285,4.275,3559.2,3559.0,0.1408]
[1754306534483,5.2332,3559.2,3559.0,0.1408]
[1754306534686,0.9582,3559.1,3558.8,0.1408]
[1754306535020,0.9582,3559.1,3557.8,0.002]
[1754306535228,0.55,3558.9,3557.8,0.002]
[1754306535387,4.275,3558.8,3558.3,0.1408]
[1754306535731,0.1408,3558.6,3557.8,0.002]
[1754306535903,0.1408,3558.6,3558.1,0.1408]
[1754306536294,0.9582,3558.5,3558.1,0.1408]
[1754306536487,4.7293,3558.4,3558.1,0.1408]
[1754306536810,6.751,3559.1,3557.8,0.21032277]
[1754306537010,4.7293,3559.0,3558.3,0.1408]
[1754306537225,4.7293,3559.0,3558.2,0.9286]
[1754306537524,4.277,3559.0,3558.6,0.1408]
[1754306537712,0.4523,3558.9,3558.6,0.1408]
[1754306538037,0.4523,3558.8,3558.6,0.1408]
[1754306538237,0.9148,3558.8,3558.1,2.81043813]
[1754306538541,0.4523,3558.7,3558.4,0.1408]
[1754306538692,4.277,3558.6,3558.4,0.1408]
[1754306539230,0.4523,3558.5,3558.4,0.1408]
[1754306539742,4.277,3558.6,3558.4,0.1408]
[1754306539892,4.277,3558.5,3558.4,0.1408]
[1754306540091,0.4523,3559.0,3558.4,3.41574999]
[1754306540332,4.277,3558.9,3558.4,3.80371499]
[1754306540640,4.277,3558.8,3558.6,2.81004126]
[1754306540940,4.277,3558.8,3558.7,0.4647]
[1754306541153,4.277,3558.8,3558.7,0.6055]
[1754306541292,4.277,3558.8,3558.7,0.1408]
[1754306541695,4.7293,3558.8,3558.7,0.1408]
[1754306542332,5.1918,3558.8,3558.4,0.1408]
[1754306542536,0.9148,3558.7,3557.9,2.81060067]
[1754306542693,0.4523,3558.6,3558.2,0.1408]
[1754306542894,4.279,3558.5,3558.2,0.1408]
[1754306543226,0.4523,3558.4,3558.2,0.1408]
[1754306543425,0.4523,3558.3,3558.2,0.1408]
[1754306544591,0.9148,3558.3,3558.2,0.1408]
[1754306546260,0.4523,3558.3,3558.2,0.1408]
[1754306546966,4.279,3558.5,3558.2,0.1408]
[1754306547372,0.4523,3558.4,3558.2,0.1408]
[1754306547571,4.7415,3558.5,3558.2,0.1408]
[1754306547736,0.4523,3558.3,3558.2,0.1408]
[1754306548559,4.7293,3558.3,3558.2,0.1408]
[1754306548971,4.277,3558.3,3558.2,0.1408]
[1754306549174,4.7293,3558.3,3558.2,0.1408]
[1754306550079,4.277,3558.3,3558.2,0.1408]
[1754306550293,0.5931,3558.7,3558.2,3.41590975]
[1754306550470,4.277,3558.6,3558.3,0.4647]
[1754306550672,4.277,3558.6,3558.4,0.1408]
[1754306551470,4.7293,3558.6,3558.4,0.1408]
[1754306551672,4.277,3558.6,3558.4,0.1408]
[1754306551873,0.4523,3558.5,3558.4,0.1408]
[1754306552702,4.7283,3558.5,3558.4,0.1408]
[1754306553056,4.7385,3558.5,3558.4,0.1408]
[1754306553261,4.7283,3558.5,3558.4,0.1408]
[1754306553562,5.1908,3558.5,3558.2,0.1408]
[1754306553786,0.9148,3558.4,3558.2,0.1408]
[1754306554300,0.9148,3558.3,3558.2,0.1408]
[1754306554502,0.4523,3558.3,3558.2,0.1408]
[1754306555064,0.4523,3558.9,3558.3,2.81028665]
[1754306555259,4.275,3558.8,3558.2,1.36473519]
[1754306555465,4.275,3558.8,3558.5,0.1408]
[1754306555877,0.4523,3558.7,3558.5,0.1408]
[1754306556093,4.275,3558.8,3558.5,0.1408]
[1754306556295,0.4523,3558.6,3558.5,0.1408]
[1754306558467,0.5931,3559.0,3558.5,0.1408]
[1754306558663,4.275,3558.9,3558.6,0.4647]
[1754306558982,4.7273,3558.9,3558.5,0.1408]
[1754306559169,0.4523,3558.8,3558.5,0.1408]
[1754306559690,0.4523,3558.7,3558.5,0.1408]
[1754306559862,4.274,3558.6,3558.5,0.1408]
[1754306560261,5.1888,3558.6,3558.5,0.1408]
[1754306560495,4.7263,3558.6,3558.5,0.1408]
[1754306560701,5.1888,3558.6,3558.5,0.1408]
[1754306561707,5.24518,3558.6,3558.5,0.1408]
[1754306561892,3.0,3558.5,3558.1,0.002]
[1754306562205,4.831,3558.4,3558.1,0.002]
[1754306562599,0.4523,3558.3,3558.1,0.002]
[1754306562971,5.2935,3558.4,3558.1,0.002]
[1754306563172,3.4625,3558.9,3558.1,0.002]
[1754306563401,0.55,3558.7,3558.1,0.002]
[1754306563669,0.9148,3558.3,3558.1,0.002]
[1754306563870,19.4662384,3558.2,3558.1,0.002]
[1754306564103,20.34590828,3558.2,3558.1,0.002]
[1754306564306,23.15631803,3558.2,3558.1,0.002]
[1754306564507,25.75296719,3558.2,3558.1,0.002]
[1754306564901,55.75296719,3558.2,3558.1,0.002]
[1754306565105,52.94255744,3558.2,3558.1,0.002]
[1754306565477,55.75296719,3558.2,3558.1,0.002]
[1754306566010,52.94255744,3558.2,3558.1,0.002]
[1754306566799,41.34244916,3558.2,3558.1,0.002]
[1754306567019,48.33884716,3558.2,3558.1,0.002]
[1754306567980,51.14925691,3558.2,3558.1,0.002]
[1754306568703,44.15285891,3558.2,3558.1,0.002]
[1754306570796,37.06144916,3558.2,3558.1,0.002]
[1754306570997,44.15485891,3558.2,3558.1,0.002]
[1754306571820,44.29565891,3558.2,3558.1,0.002]
[1754306574102,40.01265891,3558.2,3558.1,0.002]
[1754306574298,44.29665891,3558.2,3558.1,0.002]
[1754306576300,45.98665891,3558.2,3558.1,0.002]
[1754306576506,44.29665891,3558.2,3558.1,0.002]
[1754306578034,41.48624916,3558.2,3558.1,0.002]
[1754306578324,41.02374916,3558.2,3558.1,0.002]
[1754306578525,43.83415891,3558.2,3558.1,0.002]
[1754306578731,44.28915891,3558.2,3558.1,0.002]
[1754306579416,37.876,3558.2,3558.1,0.002]
[1754306579622,38.426,3558.2,3558.1,0.002]
[1754306580033,38.881,3558.2,3558.1,0.002]
[1754306581117,34.598,3558.2,3558.1,0.002]
[1754306581317,38.43,3558.2,3558.1,0.002]
[1754306581626,41.29824707,3558.2,3558.1,0.002]
[1754306582916,41.75324707,3558.2,3558.1,0.002]
[1754306583642,44.56365682,3558.2,3558.1,0.002]
[1754306583848,41.75324707,3558.2,3558.1,0.002]
[1754306585156,44.56365682,3558.2,3558.1,0.002]
[1754306585519,41.75324707,3558.2,3558.1,0.002]
[1754306586365,44.10865682,3558.2,3558.1,0.002]
[1754306586519,40.84504707,3558.2,3558.1,0.002]
[1754306586725,40.84504707,3558.2,3558.1,0.469]
[1754306586919,40.84504707,3558.2,3558.1,0.002]
[1754306587656,0.6908,3558.2,3558.1,0.002]
[1754306587858,4.4268,3558.2,3558.1,0.9455]
[1754306588070,0.1408,3558.2,3558.1,0.9455]
[1754306588233,6.996398,3558.8,3558.1,0.9455]
[1754306588577,6.996398,3558.8,3558.2,0.9435]
[1754306588578,0.1408,3558.4,3558.2,0.9435]
[1754306588725,0.1408,3558.4,3558.3,1.31910503]
[1754306588926,4.4278,3558.4,3558.3,0.9435]
[1754306590940,4.4278,3558.4,3558.3,0.467]
[1754306591760,4.286,3558.4,3558.3,0.9435]
[1754306592839,4.286,3558.4,3558.3,3.75383077]
[1754306593362,6.996398,3558.8,3558.4,2.81025051]
[1754306593560,4.286,3558.7,3558.5,1.31887505]
[1754306593727,4.286,3558.7,3558.6,0.467]
[1754306594224,4.286,3558.7,3558.5,0.4765]
[1754306594225,4.286,3558.7,3558.3,0.6078]
[1754306594422,4.4268,3558.7,3558.4,0.467]
[1754306594627,4.46192518,3558.7,3558.4,0.467]
[1754306595325,14.4572,3558.6,3558.1,0.1428]
[1754306595522,3.55,3558.4,3558.1,0.1428]
[1754306595862,3.0,3558.2,3558.1,0.002]
[1754306596165,3.1408,3558.2,3558.1,0.002]
[1754306596457,0.1408,3558.2,3558.1,0.002]
[1754306596656,4.9788,3558.2,3558.1,0.4544]
[1754306597030,4.287,3558.2,3558.1,0.9419]
[1754306597461,4.287,3558.2,3558.1,1.33143977]
[1754306597638,0.1408,3558.5,3558.1,0.9419]
[1754306597843,4.289,3558.4,3558.2,0.4524]
[1754306598573,4.289,3558.4,3558.3,0.4524]
[1754306599629,4.289,3558.4,3558.3,0.9399]
[1754306600070,0.1408,3558.7,3558.3,0.9399]
[1754306600361,4.288,3558.6,3558.4,0.9399]
[1754306600563,4.288,3558.6,3558.4,0.4875]
[1754306600766,4.288,3558.6,3558.5,0.9399]
[1754306602170,4.288,3558.6,3558.5,1.32900592]
[1754306602335,6.996398,3558.8,3558.5,1.32900592]
[1754306602670,4.287,3558.6,3558.5,1.32900592]
[1754306602870,4.287,3558.6,3558.5,0.38910592]
[1754306603433,4.287,3558.6,3558.5,1.32900592]
[1754306604129,4.287,3558.6,3558.5,0.38910592]
[1754306604331,4.7606,3558.6,3558.4,0.1408]
[1754306604683,4.287,3558.6,3558.4,0.1408]
[1754306604975,4.287,3558.6,3558.4,0.5932]
[1754306605275,0.4736,3558.5,3558.1,0.002]
[1754306605437,4.286,3558.4,3558.1,0.002]
[1754306605639,4.7596,3558.4,3558.1,0.002]
[1754306605943,0.4736,3558.3,3558.1,0.002]
[1754306606162,4.288,3558.2,3558.1,0.002]
[1754306606785,4.7616,3558.2,3558.1,0.002]
[1754306606942,5.9169,3558.2,3558.1,0.002]
[1754306607278,5.4524,3558.2,3558.1,0.002]
[1754306608548,4.4288,3558.2,3558.1,0.002]
[1754306608840,4.288,3558.2,3558.1,0.9419]
[1754306609380,4.7616,3558.2,3558.1,0.002]
[1754306610148,5.3116,3558.2,3558.1,0.002]
[1754306610373,5.7761,3558.2,3558.1,0.002]
[1754306611846,5.3116,3558.2,3558.1,0.002]
[1754306612078,4.838,3558.2,3558.1,0.4544]
[1754306612380,4.286,3558.2,3558.1,0.4544]
[1754306612552,6.996398,3558.8,3558.1,3.8931338]
[1754306612748,4.4268,3558.7,3558.2,1.6102779]
[1754306612943,4.4268,3558.7,3558.3,0.9399]
[1754306613144,4.4268,3558.7,3558.2,0.6703779]
[1754306613363,0.4736,3558.6,3558.2,0.4524]
[1754306613655,4.287,3558.5,3558.2,0.4524]
[1754306614467,4.287,3558.5,3558.3,0.4524]
[1754306614670,4.287,3558.5,3558.4,0.4524]
[1754306614858,0.1408,3558.7,3558.4,0.4524]
[1754306615062,4.286,3558.5,3558.4,0.4524]
[1754306615654,4.286,3558.5,3558.4,0.9399]
[1754306616878,7.137198,3558.8,3558.4,0.9399]
[1754306617078,4.285,3558.7,3558.4,0.9399]
[1754306617289,4.285,3558.7,3558.5,0.4524]
[1754306618989,4.285,3558.7,3558.4,0.4875]
[1754306619280,0.4736,3558.7,3558.4,0.4524]
[1754306619679,4.284,3558.6,3558.4,0.4524]
[1754306620084,4.284,3558.6,3558.3,0.1408]
[1754306620249,0.4736,3558.5,3558.3,0.1408]
[1754306620454,4.283,3558.4,3558.3,0.1408]
[1754306620651,4.283,3558.4,3558.1,0.4544]
[1754306620990,4.283,3558.4,3558.2,0.1408]
[1754306621680,4.283,3558.4,3558.2,0.5932]
[1754306621880,4.283,3558.4,3558.2,0.1408]
[1754306622079,0.4736,3558.3,3558.1,0.002]
[1754306622386,4.9728,3558.2,3558.1,0.002]
[1754306622590,7.22520326,3558.2,3558.1,0.002]
[1754306622792,7.66367314,3558.2,3558.1,0.002]
[1754306624607,14.41767314,3558.2,3558.1,0.002]
[1754306627496,20.22808289,3558.2,3558.1,0.002]
[1754306628003,17.41767314,3558.2,3558.1,0.002]
[1754306628404,19.09189912,3558.2,3558.1,0.002]
[1754306628609,21.90230887,3558.2,3558.1,0.002]
[1754306629210,19.09189912,3558.2,3558.1,0.002]
[1754306629516,16.87562598,3558.2,3558.1,0.002]
[1754306629980,17.31372598,3558.2,3558.1,0.002]
[1754306631109,57.51542166,3558.2,3558.1,0.002]
[1754306631928,57.12053373,3558.2,3558.1,0.002]
[1754306632603,52.83753373,3558.2,3558.1,0.002]
[1754306632811,27.17937105,3558.2,3558.1,0.002]
[1754306633414,28.31555482,3558.2,3558.1,0.002]
[1754306634415,58.31555482,3558.2,3558.1,0.002]
[1754306635212,58.71044275,3558.2,3558.1,0.002]
[1754306640127,58.82312575,3558.2,3558.1,0.002]
[1754306640340,58.82312575,3558.2,3557.4,0.002]
[1754306640341,3.36072572,3557.8,3557.4,0.002]
[1754306640499,55.03970047,3557.8,3557.4,0.002]
[1754306640702,55.9049664,3557.8,3557.4,0.002]
[1754306641028,59.9039358,3557.8,3557.4,0.002]
[1754306641697,59.50904787,3557.8,3557.4,0.002]
[1754306641903,62.37729494,3557.8,3557.4,0.002]
[1754306642131,43.87425426,3557.8,3557.4,0.002]
[1754306642351,41.06352854,3557.8,3557.4,0.002]
[1754306642636,42.75712854,3557.8,3557.4,0.002]
[1754306642794,43.21942854,3557.8,3557.4,0.002]
[1754306642992,38.47312854,3557.8,3557.4,0.002]
[1754306643229,12.75712854,3557.8,3557.7,0.4355]
[1754306643435,8.47312854,3557.8,3557.7,0.4355]
[1754306643651,12.75712854,3557.8,3557.7,0.4355]
[1754306644009,19.75152654,3557.8,3557.7,0.4355]
[1754306645538,15.46752654,3557.8,3557.7,0.4355]
[1754306645736,16.88327947,3557.8,3557.7,0.4355]
[1754306645943,12.59927947,3557.8,3557.7,0.4355]
[1754306646123,16.88227947,3557.8,3557.7,0.4355]
[1754306647705,13.33227947,3557.8,3557.7,0.894]
[1754306647962,13.19147947,3557.8,3557.7,0.894]
[1754306648169,13.74147947,3557.8,3557.7,0.894]
[1754306648464,13.19147947,3557.8,3557.7,0.894]
[1754306648823,13.74147947,3557.8,3557.7,0.894]
[1754306651645,13.74147947,3557.8,3557.7,1.2647038]
[1754306651859,13.74147947,3557.8,3557.7,0.894]
[1754306652776,13.19147947,3557.8,3557.7,0.894]
[1754306654579,13.19147947,3557.8,3557.7,3.70480473]
[1754306656352,8.90847947,3557.8,3557.7,3.70480473]
[1754306656576,13.19047947,3557.8,3557.7,3.70480473]
[1754306656890,13.19047947,3557.8,3557.7,4.3706543]
[1754306657079,13.19047947,3557.8,3557.7,4.5114543]
[1754306657385,6.19608147,3557.8,3557.7,4.5114543]
[1754306657769,4.282,3557.8,3557.7,7.5114543]
[1754306659701,4.282,3557.8,3557.7,7.72351012]
[1754306659896,6.994398,3558.9,3558.8,2.80993593]
[1754306660195,11.275398,3558.9,3558.8,3.71483593]
[1754306660502,11.275398,3558.9,3558.8,1.57147222]
[1754306660886,11.275398,3558.9,3558.8,4.38140815]
[1754306661202,11.275398,3558.9,3558.8,1.71227222]
[1754306661987,11.275398,3558.9,3558.8,1.25717222]
[1754306662312,11.275398,3558.9,3558.8,1.71227222]
[1754306662689,4.281,3558.9,3558.8,1.71227222]
[1754306663296,4.281,3558.9,3558.8,1.0457]
[1754306663683,4.281,3558.9,3558.8,3.85563593]
[1754306664284,4.281,3558.9,3558.8,1.0457]
[1754306664515,4.281,3558.9,3558.8,3.85563593]
[1754306668402,4.281,3558.9,3558.8,3.40053593]
[1754306668570,4.281,3558.9,3558.8,4.02159681]
[1754306668775,4.281,3558.9,3558.8,4.47669681]
[1754306669513,4.7331,3558.9,3558.8,0.76186088]
[1754306670404,4.281,3558.9,3558.8,0.76186088]
[1754306671715,4.281,3558.9,3558.8,3.57179681]
[1754306672084,4.281,3558.9,3558.8,4.02159681]
[1754306673090,4.281,3558.9,3558.8,0.76186088]
[1754306673290,4.7306,3558.9,3558.5,2.81010144]
[1754306673515,4.7306,3558.9,3558.7,0.1408]
[1754306673693,0.4521,3558.8,3558.7,0.1408]
[1754306674585,4.281,3558.9,3558.7,2.95081489]
[1754306675008,4.7331,3558.9,3558.7,0.1408]
[1754306676617,0.4521,3558.8,3558.7,0.1408]
[1754306677521,0.4521,3558.8,3558.7,2.95081489]
[1754306677728,4.281,3558.9,3558.7,0.76187802]
[1754306678227,4.7331,3558.9,3558.7,0.76187802]
[1754306678636,0.4521,3558.8,3558.7,0.76187802]
[1754306678807,4.7331,3558.9,3558.7,3.57189291]
[1754306679006,4.281,3558.9,3558.7,4.02169291]
[1754306679514,0.4496,3559.4,3558.8,4.39797308]
[1754306679515,0.4521,3559.4,3558.8,4.39797308]
[1754306679691,4.4168,3559.3,3558.9,2.80985078]
[1754306679890,4.276,3559.3,3558.8,2.80990224]
[1754306680121,0.4521,3559.2,3559.0,0.1408]
[1754306680294,0.4521,3559.1,3559.0,0.1408]
[1754306681216,4.7281,3559.1,3559.0,0.1408]
[1754306681694,4.276,3559.1,3559.0,0.5906]
[1754306681894,4.276,3559.1,3559.0,1.25715486]
[1754306682522,4.276,3559.1,3559.0,0.80735486]
[1754306682725,4.276,3559.1,3559.0,0.1408]
[1754306682930,4.7281,3559.1,3559.0,0.1408]
[1754306683428,4.276,3559.1,3559.0,0.1408]
[1754306684206,4.7281,3559.1,3559.0,0.1408]
[1754306684605,5.1777,3559.1,3559.0,0.1408]
[1754306686542,4.7281,3559.1,3559.0,0.1408]
[1754306687510,4.276,3559.1,3559.0,0.1408]
[1754306689540,4.7303,3559.1,3559.0,0.1408]
[1754306691338,4.7303,3559.1,3558.6,2.81004803]
[1754306691506,0.4543,3559.0,3558.7,0.4396]
[1754306691712,4.276,3558.9,3558.7,0.4396]
[1754306692406,0.4543,3559.0,3558.9,2.80985697]
[1754306692615,7.2093,3559.5,3559.0,2.80974465]
[1754306692938,4.276,3559.4,3559.0,2.80974465]
[1754306693139,4.276,3559.4,3559.1,3.24923479]
[1754306693327,6.755,3559.5,3559.3,2.80947566]
[1754306693529,4.276,3559.4,3559.3,3.46159671]
[1754306693722,6.755,3559.5,3559.4,2.80946226]
[1754306693923,11.031,3559.5,3559.4,2.80946226]
[1754306694117,6.755,3559.5,3559.4,3.71156226]
[1754306694319,11.031,3559.5,3559.4,3.71156226]
[1754306694638,11.031,3559.5,3559.4,4.44297237]
[1754306696111,6.755,3559.5,3559.4,4.44297237]
[1754306696311,11.031,3559.5,3559.4,3.98047237]
[1754306697547,6.755,3559.5,3559.4,3.98047237]
[1754306697750,11.031,3559.5,3559.4,4.44297237]
[1754306698247,11.031,3559.5,3559.4,6.98047237]
[1754306698548,11.031,3559.5,3559.4,7.44297237]
[1754306698843,11.031,3559.5,3559.4,6.98047237]
[1754306699451,11.031,3559.5,3559.4,6.54087237]
[1754306700353,11.4853,3559.5,3559.4,3.73141011]
[1754306700652,11.4853,3559.5,3559.1,0.1408]
[1754306700653,11.9467,3559.5,3559.1,0.1408]
[1754306700951,0.9157,3559.4,3559.1,0.1408]
[1754306701117,4.277,3559.3,3559.1,0.1408]
[1754306701313,5.1927,3559.3,3559.1,0.1408]
[1754306701554,0.9157,3559.2,3559.1,0.1408]
[1754306702453,0.95082025,3559.2,3557.7,0.21405582]
[1754306702651,5.1917,3559.1,3558.7,0.1408]
[1754306702826,4.276,3559.1,3558.7,0.1408]
[1754306703027,0.9157,3559.0,3558.7,0.1408]
[1754306703354,4.277,3558.9,3558.7,0.1408]
[1754306703651,5.1927,3558.9,3558.7,0.1408]
[1754306703831,4.277,3558.9,3558.7,0.1408]
[1754306704655,4.277,3558.8,3558.7,0.49884]
[1754306704821,4.276,3558.8,3558.7,0.5804]
[1754306705019,6.8958,3559.5,3558.7,0.1408]
[1754306705264,4.277,3559.4,3558.9,2.80978577]
[1754306705567,4.277,3559.4,3558.8,0.4396]
[1754306705745,0.9157,3559.3,3558.7,0.1408]
[1754306705946,4.31211827,3559.4,3558.5,2.81017236]
[1754306705947,5.1927,3559.2,3558.5,2.81017236]
[1754306706134,0.4543,3559.1,3559.0,0.1408]
[1754306706456,0.9157,3559.1,3559.0,0.1408]
[1754306708657,0.4543,3559.1,3559.0,0.1408]
[1754306708829,0.9157,3559.1,3559.0,0.1408]
[1754306709672,0.9157,3559.1,3558.5,3.24975718]
[1754306709828,4.7303,3559.0,3558.9,0.1408]
[1754306710166,4.276,3559.0,3558.9,0.1408]
[1754306717066,4.276,3559.0,3558.6,0.9522584]
[1754306717255,4.276,3559.0,3558.8,0.1408]
[1754306718483,0.03512321,3558.9,3558.5,0.1408]
[1754306719691,0.48031553,3558.9,3558.5,0.1408]
[1754306719980,0.1408,3558.6,3558.1,0.1408]
[1754306720131,4.276,3558.5,3558.1,0.1408]
[1754306726774,0.1408,3558.6,3558.1,0.1408]
[1754306726951,6.994398,3559.4,3558.3,3.0]
[1754306727157,4.276,3559.3,3558.9,0.1408]
[1754306727346,7.135198,3559.4,3558.9,2.95064466]
[1754306727544,6.994398,3559.4,3558.9,0.1408]
[1754306727757,4.276,3559.3,3558.7,3.0]
[1754306727952,4.276,3559.3,3559.2,2.8095617]
[1754306728157,4.276,3559.3,3559.2,3.51228871]
[1754306728985,6.755,3559.5,3559.4,2.80946226]
[1754306729192,6.755,3559.5,3559.4,5.80946226]
[1754306729355,11.031,3559.5,3559.4,5.95026226]
[1754306729672,6.755,3559.5,3559.4,5.95026226]
[1754306729888,11.031,3559.5,3559.4,6.98451389]
[1754306730780,6.755,3559.5,3559.4,6.98451389]
[1754306730943,11.031,3559.5,3559.4,6.98451389]